Cogmind - Beta 13 @@@ ROGUE MODE // 2024.04.03 @ 19:08:36 Player: CocoWaff Result: Destroyed by G-34 Mercenary with Small Laser Performance ------------- Evolutions (0) 0 Regions Visited (1) 200 Robots Destroyed (14) 70 Value Destroyed (331) 331 Prototype IDs (0) 0 Alien Tech Used (0) 0 Bonus (0) 0 TOTAL SCORE: 601 Bonus ------- None Cogmind --------- Core Integrity 0/250 Matter 241/300 Energy 350/350 System Corruption 1% Temperature Cool (6) Movement Hovering (130) Ox1 Location -10/Materials Parts ------- > --- POWER (1) -------- (None) > --- PROPULSION (2) --- Aluminum Leg Hover Unit > --- UTILITY (2) ------ High-capacity Battery > --- WEAPON (2) ------- Light Cannon > --- INVENTORY (5) ---- Medium Laser Small Laser Peak State ------------ > --- POWER ------------ Light Ion Engine > --- PROPULSION ------- Wheel Wheel > --- UTILITY ---------- Medium Matter Pod ECM Suite > --- WEAPON ----------- Medium Laser Mining Laser > --- INVENTORY -------- Light Ion Engine Wheel High-capacity Battery Medium Laser [Rating: 7] Favorites ----------- Power Light Ion Engine Engine Light Ion Engine Power Core Light Nuclear Core Propulsion Wheel Leg Aluminum Leg Wheel Wheel Hover Unit Hover Unit Utility Medium Matter Pod Device ECM Suite Storage Medium Matter Pod Weapon Medium Laser Energy Gun Medium Laser Ballistic Cannon Light Cannon Special Weapon Mining Laser Build | -11 -10 ------- Run | Yrd Mat Slots Evolved . | . . Power . | . . Propulsion . | . . Utility . | . . Weapon . | . . Parts Attached 21 | 6 15 Power 4 | 1 3 Engine 3 | 1 2 Core 1 | . 1 Reactor . | . . Propulsion 5 | 2 3 Treads . | . . Leg 1 | . 1 Wheel 3 | 2 1 Hover 1 | . 1 Flight . | . . Utility 3 | 1 2 Device 1 | . 1 Storage 2 | 1 1 Processor . | . . Hackware . | . . Protection . | . . Artifact . | . . Weapon 9 | 2 7 Energy Gun 7 | 2 5 Energy Cannon . | . . Ballistic Gun . | . . Ballistic Cannon 1 | . 1 Launcher . | . . Special Weapon 1 | . 1 Impact Weapon . | . . Slashing Weapon . | . . Piercing Weapon . | . . Special Melee Weapon . | . . Unidentified Prototypes . | . . Parts Lost 10 | . 10 Power 2 | . 2 Propulsion 2 | . 2 Utility 2 | . 2 Weapon 4 | . 4 Highest Loss Streak 7 | . 7 To Critical Strikes . | . . Average Slot Usage (%) 74 | . 74 Engine 10 | . 10 Core 1 | . 1 Leg 1 | . 1 Wheel 20 | . 20 Device 3 | . 3 Storage 14 | . 14 Energy Gun 12 | . 12 Ballistic Cannon 4 | . 4 Special Weapon 4 | . 4 Naked Turns . | . . Heaviest Build 12 | 9 12 Greatest Support 20 | 20 20 Greatest Overweight (x) 3 | . 3 Average Overweight (x) . | . . Largest Inventory Capacity 5 | 5 5 Average Capacity 5 | 5 5 Most Carried 5 | 4 5 Average Carried 3 | 1 3 Final Capacity 5 | 5 5 Final Carried 4 | 4 2 Class Distribution -------------------- 100% | Mutant Dominant Class ---------------- Mutant | -10/Materials Resources | -11 -10 ----------- Run | Yrd Mat Matter Collected 462 | 360 102 Remotely . | . . Salvage Created 420 | 81 339 Parts 37 | 7 30 Haulers Intercepted . | . . Recyclers Shooed 1 | . 1 Parts Field Recycled . | . . Retrieved Matter . | . . Parts Self-Destructed . | . . Prevented . | . . Kills | -11 -10 ------- Run | Yrd Mat Combat Hostiles Destroyed 8 | 1 7 Guns 3 | 1 2 Cannons 5 | . 5 Classes Destroyed 6 | 3 3 Worker 2 | 1 1 Builder 1 | . 1 Tunneler 1 | 1 . Recycler 1 | . 1 Watcher 1 | . 1 Grunt 8 | 1 7 Best Kill Streak 4 | 2 4 Combat Bots Only 3 | 1 3 Max Kills in Single Turn 1 | 1 1 Gunslinging . | . . Exploded . | . . Melee . | . . Uniques/NPCs Destroyed . | . . Combat | -11 -10 -------- Run | Yrd Mat Hostile Shots Fired 86 | 2 84 Missed 18 | . 18 Damage Taken 908 | 21 887 Core 257 | . 257 Absorbed by Shields . | . . Core Remaining (%) 100 | 100 . Volleys Fired 64 | 4 60 Largest 2 | 2 2 Hottest 150 | 90 150 Shots Fired 89 | 8 81 Gun 57 | 8 49 Cannon 28 | . 28 Launcher . | . . Special 4 | . 4 Kinetic 28 | . 28 Thermal 41 | 4 37 Explosive . | . . Electromagnetic 20 | 4 16 Robot Hit Streak 4 | 3 4 Robot Miss Streak 5 | 1 5 Penetration Max . | . . Secondary Targets 1 | . 1 Max Gunslinging Chain 1 | . 1 Shots Hit Robots 42 | 4 38 Core Hits 20 | 4 16 Critical Kills . | . . Critical Parts Destroyed . | . . Critical Strikes 4 | 1 3 Burn 3 | 1 2 Blast 1 | . 1 Melee Attacks . | . . Impact . | . . Slashing . | . . Piercing . | . . Sneak Attacks . | . . Combat Hostiles . | . . Follow-up Attacks . | . . Damage Inflicted 745 | 53 692 Guns 356 | 53 303 Cannons 350 | . 350 Explosions 37 | . 37 Melee . | . . Ramming 2 | . 2 Kinetic 350 | . 350 Thermal 226 | 13 213 Explosive . | . . Electromagnetic 167 | 40 127 Impact . | . . Slashing . | . . Piercing . | . . Highest Corruption 1 | . 1 Average Corruption 1 | . 1 Corruption Purged . | . . Corruption Blocked . | . . Effects 6 | . 6 Message Errors 1 | . 1 Matter Fused 2 | . 2 Heat Flow Errors 1 | . 1 Parts Rejected 1 | . 1 Data Loss (minor) 1 | . 1 Overload Shots . | . . Overflow Damage 6 | . 6 Projectiles 6 | . 6 Explosions . | . . Melee . | . . Knockbacks 4 | . 4 Impact . | . . Kinetic 4 | . 4 Secondary . | . . Self-Inflicted Damage 1 | . 1 Shots . | . . Rammed 1 | . 1 Targets Rammed 1 | . 1 Kicked . | . . Crushed . | . . Highest Temperature 211 | 72 211 Average Temperature 70 | 29 75 Received Heat Transfer 528 | 12 516 Siege Activations . | . . Robots Corrupted . | . . Combat Hostiles . | . . Parts Fried . | . . Impact Corruptions . | . . Robots Melted . | . . Combat Hostiles . | . . Parts Melted 2 | 1 1 Heat Transferred 827 | 111 716 Parts Sabotaged . | . . Parts Stolen . | . . Parts Stripped . | . . Power Chain Reactions 1 | . 1 Alert | -11 -10 ------- Run | Yrd Mat Peak Influence 183 | 30 183 Initial 19 | . 19 Average 88 | 6 101 Maximum Alert Level . | . . Low Security (%) 100 | 100 100 Level 1 . | . . Level 2 . | . . Level 3 . | . . Level 4 . | . . Level 5 . | . . High Security . | . . Max Security . | . . Squads Dispatched 5 | . 5 Investigation 2 | . 2 Extermination . | . . Reinforcement 3 | . 3 Assault . | . . Garrison . | . . Intercept . | . . Searches Triggered . | . . Construction Impeded . | . . Haulers Reinforced . | . . Active Scanning Responses . | . . Cargo Convoy Interrupts . | . . Stealth | -11 -10 --------- Run | Yrd Mat Distress Signals 2 | . 2 Communications Jammed . | . . Distress Signals . | . . Times Spotted 17 | 1 16 Peak Tracking Total 3 | 1 3 Tactical Retreats 1 | . 1 Traps | -11 -10 ------- Run | Yrd Mat Traps Triggered 1 | . 1 Indirectly . | . . Trap Hack Attempts . | . . Triggered . | . . Disarmed . | . . Reprogrammed . | . . Reused . | . . Traps Extracted . | . . Installed . | . . Triggered . | . . Machines | -11 -10 ---------- Run | Yrd Mat Machines Disabled 1 | . 1 Max in Single Turn 1 | . 1 Machines Repaired . | . . Machines Dismantled . | . . Machines Sabotaged . | . . Overloaded Fab Kills . | . . Hacking | -11 -10 --------- Run | Yrd Mat Machines Accessed 5 | . 5 Terminals 5 | . 5 Fabricators . | . . Repair Stations . | . . Recycling Units . | . . Scanalyzers . | . . Garrison Access . | . . Total Hacks 23 | . 23 Successful 13 | . 13 Failed 10 | . 10 Catastrophic 1 | . 1 Database Lockouts . | . . Manual 1 | . 1 Terminals 23 | . 23 Fabricators . | . . Repair Stations . | . . Recycling Units . | . . Scanalyzers . | . . Garrison Access . | . . Terminal Hacks 13 | . 13 Record 5 | . 5 Emergency Access Points 2 | . 2 Alert Level 3 | . 3 Locate Traps 1 | . 1 Patrol Status 1 | . 1 Recall Investigation 1 | . 1 Fabricator Hacks . | . . Repair Station Hacks . | . . Recycling Unit Hacks . | . . Scanalyzer . | . . Garrison Access Hacks . | . . Unauthorized Hacks . | . . Terminals . | . . Fabricators . | . . Repair Stations . | . . Recycling Units . | . . Scanalyzers . | . . Garrison Access . | . . Data Cores Recovered . | . . Used . | . . Hacking Detections 5 | . 5 Full Trace Events 5 | . 5 Feedback Events . | . . Feedback Blocked . | . . Robot Schematics Acquired . | . . Robots Built . | . . Authchips . | . . Time . | . . Total Robot Build Rating . | . . Part Schematics Acquired . | . . Parts Built . | . . Authchips . | . . Time . | . . Total Part Build Rating . | . . Parts Repaired . | . . Time . | . . Parts Recycled . | . . Recycled Matter . | . . Retrieved Matter . | . . Retrieved Components . | . . Parts Scanalyzed . | . . Part Schematics Acquired . | . . Parts Damaged . | . . Bothacking | -11 -10 ------------ Run | Yrd Mat Used RIF Installer . | . . Robots Hacked . | . . Non-combat . | . . Combat . | . . Robot Hacks Applied . | . . Relay Couplers Released . | . . Fabnet Peak Effective % . | . . Robots Rewired . | . . Allies Hacked . | . . Hacks Repelled . | . . Allies | -11 -10 -------- Run | Yrd Mat Total Allies . | . . Largest Group . | . . Highest-Rated Group . | . . Highest-Rated Ally . | . . Total Orders . | . . Ally Attacks . | . . Total Damage . | . . Kills . | . . Allies Corrupted . | . . Allies Melted . | . . Intel | -11 -10 ------- Run | Yrd Mat Robot Analysis Total . | . . Derelict Logs Recovered . | . . Drone Launches . | . . Drone Recoveries . | . . Exploration | -11 -10 ------------- Run | Yrd Mat Turns Passed 640 | 86 554 Spaces Moved 487 | 80 407 Core 46 | 20 26 Treads . | . . Legs 17 | . 17 Wheels 422 | 60 362 Hover 2 | . 2 Flight . | . . Fastest Speed 50 | 50 80 Average Speed 87 | 72 90 Slowest Speed 200 | 80 200 Overloaded Moves . | . . Propulsion Burnouts . | . . Robots Hopped . | . . Cave-ins Triggered . | . . Exploration Rate (%) 33 | 8 58 Regions Visited 1 Branch Regions . Pre-discovered Areas . | . . Known Exits Taken . | . . Unknown Exits Taken 1 | 1 . Scrap Searched . | . . Spaces Dug 1 | . 1 Terrain Destroyed 1 | . 1 Melee . | . . Projectile 1 | . 1 AOE . | . . Terrain Rammed . | . . Walls Destroyed . | . . Machines Disabled . | . . Actions | -11 -10 --------- Run | Yrd Mat Total 602 | 99 503 Wait 4 | . 4 Move 486 | 79 407 Hop . | . . Pick Up 21 | 10 11 Fast Attach . | . . Attach 15 | 6 9 Detach . | . . Swap 6 | . 6 Drop 5 | . 5 Fire 64 | 4 60 Melee . | . . Ram 1 | . 1 Kick . | . . Crush . | . . Escape Stasis . | . . Rewire . | . . Trap . | . . Miscellaneous . | . . Route ------- -11/Scrapyard -10/Materials History --------- Turn | Location | Event 2 | -11/Scrapyard | Met Revision 17 65 | -11/Scrapyard | Discovered new exit (range 8) 87 | -11/Scrapyard | Entered Materials 323 | -10/Materials | Build established: Mutant 514 | -10/Materials | Core integrity fell below 50% 546 | -10/Materials | Lost 7 parts (1p2n2u2w) 630 | -10/Materials | Core integrity fell below 20% 641 | -10/Materials | Destroyed by G-34 Mercenary with Small Laser Last Messages --------------- R-06 Scavenger collects Ion Engine. K-01 Serf collects debris. Acquired Aluminum Leg. K-01 Serf collects debris. Acquired 4 matter. K-01 Serf collects debris. Acquired Sml. Laser. K-01 Serf collects debris. Acquired 2 matter. Connecting with Terminal... ALERT: Suspicious activity at Terminal M008. Dispatching Investigation squad. K-01 Serf collects debris. K-01 Serf destroyed. Lgt. Nuclear Core destroyed. R-06 Scavenger collects Heat Sink. G-34 Mercenary destroyed. System corrupted: Matter fused (-6). G-34 Mercenary destroyed. G-34 Mercenary knocked back. Map ----- +----------------------------------------------------+ | ??????????????????????????????????????????# #? | | ??????????????????????????????????????????# #? | | ????????????????????? ???????????######### #? | | ????????????????????? #??????? [% #? | | ??????????????????### #??????? ###### #? | | ??????????????????# ???????????????????# #? | | ??????????????????? ???????????????????# #? | | ??????????????????? ???????????????????#### #? | | ??????????????????? ??????????????????????# #? | | ??????????????????? =??????????????????????# #? | | ???????????????????# #??####????????????????# #? | | ???????????????????# #? #########?????####+## | | ????????????#??????# #? # + #?????# | | ????????????# ###### # ??####### #?????# """ | | ????????????# # ?????????# ####### "T" | | ????????????+ ??????????# ## # | | ????????????# #???????????# ## # | | ?????????????# """! ###?????????# ## + | | ?????????????# """""%%""#?????????# ## # """ | | ?????????????# """"" T"#?????#####+### ## """ | | ?????????????# """"" ""#?????# # ## """ | | ?????????????# %"" ###?????# + ## | | ?????????????# #???????# # ## [ | | ?????????????# % #???????######### ####+### | | ?????????????# % % ################# #?? | | ?????????????#% %% *%[ @ r #?? | | ?????????????# *g!* % ######### #### ### | | ?????????????# %=!%=% #???????# #??# # | | ?????????????# u ###############?????###+#### # = | | ?????????????# ????????????????????# # # = | | ?????????????# ?????????????????????# """ # # | | ?????????????# ?????????????????????# "Y" + =+* | | ?????????????# ??????????????????????# # # | | ????????????? ???????????????????????# # # | | ?????????????????????????????????????# # #! | | ?????????????????????????????????????######## # | | ?????????????????????????????????????# + ### | | ?????????????????????????????????????# # #?? | | ?????????????????????????????????????# """ # #?? | | ?????????????????????????????????????# """ ####?? | | ?????????????????????????????????????# """ #????? | | ?????????????????????????????????????# #????? | | ?????????????????????????????????????#######?????? | | ?????????????????????????????????????????????????? | | | | | | | | | | | | | +----------------------------------------------------+ Best States ------------- Heat Dissipation 25 Energy Generation 14 Energy Capacity 410 Matter Stores 400 Matter Capacity 400 Sight Range 16 Terrain Scan Density 10 ECM Strength 1 Evasion (%) 50 Item Schematics ----------------- None Robot Schematics ------------------ None Fabricated ------------ Nothing Alien Tech Used ----------------- None Achievements -------------- One Hack Too Far Storm Trooper Challenges ------------ None Game ------ Seed MatterShockHumpback Manual? 0 Play Time 00:22:22 Cumulative 0.9 hours Start 2024.04.03 @ 18:29:36 End 2024.04.03 @ 19:08:36 Sessions 1 Manual Loads 0 Difficulty Rogue Special Mode None Game No. 3 Rogue 3 Adventurer 0 Explorer 0 Win Type - Total 0 Types 0/0/0/0/0/0/0/0/0 Lore% 0 Gallery% 2 Achievement% 2 Wizard Run 0 Options --------- Layout 1 ASCII 1 Keyboard 0 Movement Mouse Keybinds 0 Fullscreen 2 Font 24/Smallcaps Map View 50x35 Zoom Use 0% Tactical HUD 0 Map Filters NONE Filters NONE Steam 1 RUN: 258dcb3e-c48f-4b0e-a71f-58aac75284d1